fUST/lending_fUST_20240525
["ID","MTS","AMOUNT","RATE_DAILY","PERIOD"]
[327922401,1716637845255,-189.349407,0.00013699,2]
[327922402,1716637845264,-189.349407,0.00013699,2]
[327922403,1716637845273,-189.349407,0.00013699,2]
[327922404,1716637845284,-189.349407,0.00013699,2]
[327922405,1716637845293,-189.349407,0.00013699,2]
[327922406,1716637845303,-189.349407,0.00013699,2]
[327922407,1716637845313,-189.349407,0.00013699,2]
[327922408,1716637845322,-189.349407,0.00013699,2]
[327922409,1716637845332,-189.349407,0.00013699,2]
[327922410,1716637845341,-151.0,0.00013699,2]
[327922411,1716637845350,-151.0,0.00013699,2]
[327922412,1716637845357,-151.0,0.00013699,2]
[327922413,1716637845365,-151.0,0.00013699,2]
[327922414,1716637845373,-151.0,0.00013699,2]
[327922415,1716637845382,-151.0,0.00013699,2]
[327922416,1716637845390,-151.0,0.00013699,2]
[327922417,1716637845399,-151.0,0.00013699,2]
[327922418,1716637845408,-151.0,0.00013699,2]
[327922419,1716637845417,-151.0,0.00013699,2]
[327922420,1716637845427,-151.0,0.00013699,2]
[327922421,1716637845435,-151.0,0.00013699,2]
[327922422,1716637845445,-151.0,0.00013699,2]
[327922423,1716637845454,-151.0,0.00013699,2]
[327922424,1716637845463,-151.0,0.00013699,2]
[327922425,1716637845472,-151.0,0.00013699,2]
[327922426,1716637845481,-151.0,0.00013699,2]
[327922427,1716637845491,-151.0,0.00013699,2]
[327922428,1716637845500,-167.4720493,0.00013699,2]
[327922429,1716637845509,-151.0,0.00013699,2]
[327922430,1716637845518,-151.0,0.00013699,2]
[327922431,1716637845528,-151.0,0.00013699,2]
[327922432,1716637845538,-152.069391,0.00013699,2]
[327922433,1716637845547,-207.979699,0.00013699,2]
[327922434,1716637845555,-207.979699,0.00013699,2]
[327922435,1716637845564,-207.979699,0.00013699,2]
[327922436,1716637845572,-207.979699,0.00013699,2]
[327922437,1716637845581,-538.251931,0.00013699,2]
[327922438,1716637845591,-538.251931,0.00013699,2]
[327922439,1716637845603,-538.251931,0.00013699,2]
[327922440,1716637845612,-207.979699,0.00013699,2]
[327922441,1716637845621,-538.251931,0.00013699,2]
[327922442,1716637845630,-207.979699,0.00013699,2]
[327922443,1716637845640,-207.979699,0.00013699,2]
[327922444,1716637845650,-207.979699,0.00013699,2]
[327922445,1716637845659,-151.0,0.00013699,2]
[327922446,1716637845668,-151.0,0.00013699,2]
[327922447,1716637845679,-151.0,0.00013699,2]
[327922448,1716637845689,-151.0,0.00013699,2]
[327922449,1716637845698,-206.286403,0.00013699,2]
[327922450,1716637845707,-538.251931,0.00013699,2]
[327922451,1716637845716,-538.251931,0.00013699,2]
[327922452,1716637845726,-538.251931,0.00013699,2]
[327922453,1716637845735,-151.0,0.00013699,2]
[327922454,1716637845745,-151.52173,0.00013699,2]
[327922455,1716637845754,-538.251931,0.00013699,2]
[327922456,1716637845763,-3000.0,0.00013699,2]
[327922457,1716637845774,-204.672948,0.00013699,2]
[327922458,1716637845784,-204.672948,0.00013699,2]
[327922459,1716637845793,-204.672948,0.00013699,2]
[327922460,1716637845802,-204.672948,0.00013699,2]
[327922461,1716637845811,-151.565251,0.00013699,2]
[327922462,1716637845820,-538.722581,0.00013699,2]
[327922463,1716637845830,-538.722581,0.00013699,2]
[327922464,1716637845839,-538.722581,0.00013699,2]
[327922465,1716637845850,-538.722581,0.00013699,2]
[327922466,1716637845859,-204.672948,0.00013699,2]
[327922467,1716637845868,-204.672948,0.00013699,2]
[327922468,1716637845877,-204.672948,0.00013699,2]
[327922469,1716637845887,-204.672948,0.00013699,2]
[327922470,1716637845896,-538.722581,0.00013699,2]
[327922471,1716637845906,-538.722581,0.00013699,2]
[327922472,1716637845915,-538.722581,0.00013699,2]
[327922473,1716637845924,-538.722581,0.00013699,2]
[327922474,1716637845934,-255.625163,0.00013699,2]
[327922475,1716637845943,-151.0,0.00013699,2]
[327922477,1716637845954,-151.0,0.00013699,2]
[327922479,1716637845964,-151.0,0.00013699,2]
[327922480,1716637845973,-151.0,0.00013699,2]
[327922481,1716637846107,-151.0,0.00013699,2]
[327922482,1716637846118,-151.0,0.00013699,2]
[327922483,1716637846128,-151.0,0.00013699,2]
[327922484,1716637846139,-151.0,0.00013699,2]
[327922485,1716637846149,-151.0,0.00013699,2]
[327922486,1716637846158,-151.0,0.00013699,2]
[327922487,1716637846167,-207.151236,0.00013699,2]
[327922488,1716637846177,-460.894496,0.00013699,2]
[327922489,1716637846186,-460.894496,0.00013699,2]
[327922490,1716637846195,-460.894496,0.00013699,2]
[327922491,1716637846204,-460.894496,0.00013699,2]
[327922493,1716637846213,-460.894496,0.00013699,2]
[327922495,1716637846222,-460.894496,0.00013699,2]
[327922497,1716637846232,-460.894496,0.00013699,2]
[327922499,1716637846241,-460.894496,0.00013699,2]
[327922500,1716637846250,-151.0,0.00013699,2]
[327922502,1716637846259,-221.02207,0.00013699,2]
[327922504,1716637846269,-151.0,0.00013699,2]
[327922505,1716637846279,-151.0,0.00013699,2]
[327922507,1716637846288,-189.349407,0.00013699,2]
[327922508,1716637846298,-189.349407,0.00013699,2]
[327922509,1716637846307,-189.349407,0.00013699,2]
[327922510,1716637846315,-189.349407,0.00013699,2]
[327922511,1716637846324,-151.0,0.00013699,2]
[327922512,1716637846336,-151.0,0.00013699,2]
[327922513,1716637846346,-151.0,0.00013699,2]
[327922514,1716637846355,-151.0,0.00013699,2]
[327922515,1716637846365,-207.979699,0.00013699,2]
[327922516,1716637846375,-207.979699,0.00013699,2]
[327922517,1716637846384,-538.251931,0.00013699,2]
[327922518,1716637846394,-207.979699,0.00013699,2]
[327922519,1716637846403,-538.251931,0.00013699,2]
[327922520,1716637846413,-207.979699,0.00013699,2]
[327922521,1716637846424,-538.251931,0.00013699,2]
[327922522,1716637846434,-538.251931,0.00013699,2]
[327922523,1716637846444,-204.672948,0.00013699,2]
[327922525,1716637846453,-204.672948,0.00013699,2]
[327922526,1716637846463,-538.722581,0.00013699,2]
[327922528,1716637846472,-538.722581,0.00013699,2]
[327922529,1716637846481,-538.722581,0.00013699,2]
[327922530,1716637846491,-204.672948,0.00013699,2]
[327922531,1716637846500,-204.672948,0.00013699,2]
[327922532,1716637846509,-538.722581,0.00013699,2]
[327922533,1716637846518,-538.722581,0.00013699,2]
[327922534,1716637846529,-538.722581,0.00013699,2]
[327922535,1716637846538,-151.0,0.00013699,2]
[327922536,1716637846547,-151.0,0.00013699,2]
[327922537,1716637846556,-151.0,0.00013699,2]
[327922538,1716637846565,-151.0,0.00013699,2]
[327922539,1716637846574,-192.837882,0.00013699,2]
[327922540,1716637846583,-186.36730217,0.00013699,2]
[327922541,1716637846592,-460.894496,0.00013699,2]
[327922542,1716637846606,-460.894496,0.00013699,2]
[327922543,1716637846615,-460.894496,0.00013699,2]
[327922544,1716637846624,-460.894496,0.00013699,2]
[327922545,1716637846634,-460.894496,0.00013699,2]
[327922546,1716637846643,-460.894496,0.00013699,2]
[327922547,1716637846652,-398.759741,0.00013699,2]
[327922548,1716637846661,-398.759741,0.00013699,2]
[327922549,1716637846670,-398.759741,0.00013699,2]
[327922550,1716637846680,-398.759741,0.00013699,2]
[327922551,1716637846689,-398.759741,0.00013699,2]
[327922552,1716637846699,-398.759741,0.00013699,2]
[327922553,1716637846707,-283.86669786,0.000137,2]
[327922554,1716637846716,-921.9413628,0.00014,2]
[327922555,1716637846725,-499.112,0.00014168,2]
[327922556,1716637846735,-152.695,0.00014168,2]
[327922558,1716637846743,-150.241,0.00014168,2]
[327922559,1716637846752,-209.591,0.00014168,2]
[327922560,1716637846762,-156.866,0.00014168,2]
[327922561,1716637846771,-4227.33365889,0.00014608,2]
[327922562,1716637846782,-417.64867022,0.00014673,2]
[327922563,1716637846791,-151.0,0.00014788,2]
[327922564,1716637846800,-1161.584723,0.00014788,2]
[327922565,1716637846809,-1161.584723,0.00014788,2]
[327922566,1716637846818,-329.959776,0.00014788,2]
[327922567,1716637846827,-329.959776,0.00014788,2]
[327922568,1716637846836,-152.969022,0.00014788,2]
[327922569,1716637846846,-207.979699,0.00014788,2]
[327922570,1716637846856,-538.251931,0.00014788,2]
[327922571,1716637846866,-207.979699,0.00014788,2]
[327922572,1716637846875,-538.251931,0.00014788,2]
[327922573,1716637846884,-204.672948,0.00014788,2]
[327922574,1716637846893,-538.722581,0.00014788,2]
[327922575,1716637846903,-204.672948,0.00014788,2]
[327922576,1716637846912,-538.722581,0.00014788,2]
[327922577,1716637846921,-151.0,0.00014788,2]
[327922578,1716637846930,-460.894496,0.00014788,2]
[327922579,1716637846939,-460.894496,0.00014788,2]
[327922580,1716637846949,-398.759741,0.00014788,2]
[327922581,1716637846958,-398.759741,0.00014788,2]
[327922582,1716637846968,-1128.41278803,0.00014849,2]
[327922583,1716637846977,-154.91778801,0.00014995,2]
[327922584,1716637846987,-270.06099238,0.00014998,2]
[327922585,1716637846996,-11957.45058988,0.00014999,2]
[327922586,1716637847005,-151.0,0.00014999,2]
[327922587,1716637847015,-291.226236,0.00014999,2]
[327922588,1716637847024,-151.0,0.00014999,2]
[327922589,1716637847034,-151.0,0.00014999,2]
[327922590,1716637847043,-151.0,0.00014999,2]
[327922591,1716637847053,-151.0,0.00014999,2]
[327922592,1716637847062,-189.349407,0.00014999,2]
[327922593,1716637847071,-189.349407,0.00014999,2]
[327922594,1716637847081,-151.0,0.00014999,2]
[327922595,1716637847090,-151.0,0.00014999,2]
[327922596,1716637847099,-207.979699,0.00014999,2]
[327922597,1716637847109,-538.251931,0.00014999,2]
[327922598,1716637847118,-207.979699,0.00014999,2]
[327922599,1716637847128,-538.251931,0.00014999,2]
[327922600,1716637847137,-204.672948,0.00014999,2]
[327922601,1716637847146,-538.722581,0.00014999,2]
[327922602,1716637847155,-204.672948,0.00014999,2]
[327922603,1716637847164,-538.722581,0.00014999,2]
[327922604,1716637847174,-151.0,0.00014999,2]
[327922605,1716637847183,-460.894496,0.00014999,2]
[327922606,1716637847193,-460.894496,0.00014999,2]
[327922607,1716637847202,-398.759741,0.00014999,2]
[327922608,1716637847211,-398.759741,0.00014999,2]
[327922609,1716637847220,-224.70364529,0.00015,2]
[327922610,1716637847230,-154.82968734,0.00015,2]
[327922611,1716637847240,-943.54638398,0.00015,2]
[327922612,1716637847249,-2801.75380745,0.00015,2]
[327922613,1716637847258,-154.82968734,0.00015,2]
[327922614,1716637847268,-80000.0,0.00015,2]
[327922615,1716637847277,-151.0,0.00015,2]
[327922616,1716637847288,-154.82968734,0.00015,2]
[327922617,1716637847297,-2403.8060941,0.00015,2]
[327922618,1716637847306,-155.03907149,0.00015,2]
[327922619,1716637847315,-151.0,0.00015,2]
[327922620,1716637847324,-1161.584723,0.00015,2]
[327922621,1716637847334,-151.0,0.00015,2]
[327922622,1716637847343,-1161.584723,0.00015,2]
[327922623,1716637847353,-1161.584723,0.00015,2]
[327922624,1716637847362,-1161.584723,0.00015,2]
[327922625,1716637847372,-1685.54934894,0.00015,2]
[327922626,1716637847381,-329.959776,0.00015,2]
[327922627,1716637847391,-329.959776,0.00015,2]
[327922628,1716637847400,-329.959776,0.00015,2]
[327922629,1716637847410,-329.959776,0.00015,2]
[327922630,1716637847419,-151.0,0.00015,2]
[327922631,1716637847428,-151.0,0.00015,2]
[327922632,1716637847437,-189.349407,0.00015,2]
[327922633,1716637847447,-189.349407,0.00015,2]
[327922634,1716637847456,-1098.07618172,0.00015,2]
[327922635,1716637847465,-151.0,0.00015,2]
[327922636,1716637847475,-207.979699,0.00015,2]
[327922637,1716637847484,-538.251931,0.00015,2]
[327922638,1716637847494,-207.979699,0.00015,2]
[327922639,1716637847503,-538.251931,0.00015,2]
[327922640,1716637847513,-204.672948,0.00015,2]
[327922641,1716637847522,-538.722581,0.00015,2]
[327922642,1716637847532,-204.672948,0.00015,2]
[327922643,1716637847542,-538.722573,0.00015,2]
[327922644,1716637847551,-151.0,0.00015,2]
[327922645,1716637847561,-460.894496,0.00015,2]
[327922646,1716637847571,-460.894496,0.00015,2]
[327922647,1716637847580,-398.759741,0.00015,2]
[327922648,1716637847589,-398.759743,0.00015,2]
[327922649,1716637847603,-190.10124897,0.000156,2]
[327922650,1716637847612,-207.979699,0.00015618,2]
[327922651,1716637847621,-538.251931,0.00015618,2]
[327922652,1716637847631,-207.979691,0.00015618,2]
[327922653,1716637847640,-538.251931,0.00015618,2]
[327922654,1716637847650,-204.672948,0.00015618,2]
[327922655,1716637847659,-204.672948,0.00015618,2]
[327922656,1716637847669,-151.0,0.00015783,3]
[327922657,1716637847680,-274.71288917,0.000165,2]
[327922658,1716637847688,-189.349407,0.00016833,2]
[327922659,1716637847698,-189.349411,0.00016833,2]
[327922660,1716637847707,-244.760499,0.00016833,2]
[327922661,1716637847716,-431.50458725,0.00016833,2]
[327922662,1716637847724,-497.0,0.00017168,2]
[327922663,1716637847733,-150.0,0.00017168,2]
[327922664,1716637847742,-150.0,0.00017168,2]
[327922665,1716637847751,-11192.76342831,0.00017257,2]
[327922666,1716637847759,-151.0,0.00017257,2]
[327922667,1716637847768,-1161.584723,0.00017257,2]
[327922668,1716637847777,-210.779414,0.00017257,2]
[327922669,1716637847788,-1161.584723,0.00017257,2]
[327922670,1716637847798,-329.959776,0.00017257,2]
[327922671,1716637847807,-329.959776,0.00017257,2]
[327922672,1716637847816,-151.0,0.00017257,2]
[327922673,1716637847825,-151.0,0.00017257,2]
[327922674,1716637847835,-1582.0138323,0.00017357,2]
[327922675,1716637847844,-1893.75365915,0.00017357,2]
[327922676,1716637847854,-513.98587396,0.00017893,2]
[327922677,1716637847863,-236.4519588,0.00017895,2]
[327922678,1716637847873,-155.21473538,0.00017895,2]
[327922679,1716637847882,-155.36056009,0.00017895,2]
[327922680,1716637847892,-7154.47337815,0.00017898,2]
[327922681,1716637848049,-395.68345474,6.608e-05,2]
[327922682,1716637848059,-1325.73540606,0.00017898,2]
[327922683,1716637854143,424.94081074,4.962e-05,2]
[327922684,1716638516000,3000.0,0.000275,30]
[327922685,1716638790630,5341.37421971,0.00027,30]
[327922687,1716638950228,-194.63259414,6.374e-05,2]
[327922688,1716638950254,-1979.22122047,6.374e-05,2]
[327922689,1716638950274,-410.85900029,6.375e-05,2]
[327922690,1716638950295,-2636.83525359,6.375e-05,2]
[327922691,1716638950316,-455.85517438,6.376e-05,2]
[327922692,1716638950337,-164.28466186,6.376e-05,2]
[327922693,1716638950358,-1497.86344925,6.376e-05,2]
[327922694,1716638950379,-239.00629442,6.377e-05,2]
[327922695,1716638950398,-1511.34126217,6.377e-05,2]
[327922696,1716638950418,-2109.2942352,6.377e-05,2]
[327922697,1716638950438,-59448.58262667,6.377e-05,2]
[327922698,1716638950471,-836.26318316,6.378e-05,2]
[327922699,1716638950492,-9567.99465674,6.378e-05,2]
[327922700,1716638950514,-281.80268381,6.379e-05,2]
[327922701,1716638950535,-207.72365159,6.38e-05,2]
[327922702,1716638950556,-546.74672462,6.388e-05,2]
[327922703,1716638950578,-154.82968734,6.608e-05,2]
[327922704,1716638950599,-1253.11162468,6.613e-05,2]
[327922705,1716638950620,-237.23075636,6.614e-05,2]
[327922706,1716638950642,-57149.79414493,6.615e-05,2]
[327922707,1716638956155,-685.23486931,6.374e-05,2]
[327922708,1716638956176,-207.72365159,6.374e-05,2]
[327922709,1716638956197,-1508.79520575,6.615e-05,2]
[327922711,1716638977219,154.86062544,6.284e-05,2]
[327922712,1716638995209,168.20865543,6.284e-05,2]
[327922713,1716639030247,224.70364529,6.284e-05,2]
[327922748,1716639031996,-492.01585868,6.615e-05,2]
[327922750,1716639032007,-899.57831775,7.397e-05,2]
[327922752,1716639032016,-4544.55579188,7.397e-05,2]
[327922759,1716639032076,-383.7998292,7.397e-05,2]
[327922820,1716639037682,-350.6,7.397e-05,2]
[327922821,1716639037752,-9243.32406731,7.397e-05,2]
[327922858,1716639041804,-10377.72031161,7.397e-05,2]
[327922859,1716639041814,-211.83928046,9.997e-05,2]
[327922860,1716639041823,-225.55263445,9.997e-05,2]
[327922861,1716639041833,-721.01785375,9.997e-05,2]
[327922862,1716639041843,-351.84257211,9.997e-05,2]
[327922863,1716639041853,-2588.02972394,9.997e-05,2]
[327922864,1716639041862,-155.27410581,9.998e-05,2]
[327922865,1716639041872,-272.24807211,9.998e-05,2]
[327922866,1716639041881,-9406.84773612,0.0001,2]
[327922867,1716639041891,-192.33,0.00010959,2]
[327922868,1716639041901,-160.27,0.00010959,2]
[327922869,1716639041910,-801.39,0.00010959,2]
[327922870,1716639041920,-2530.83770961,0.00012899,2]
[327922913,1716639046159,359.81549099,6.284e-05,2]
[327922916,1716639046548,-3059.82715,0.00012899,2]
[327922917,1716639235712,221.76,0.000275,30]
[327922918,1716639838755,250.0,6.22e-05,2]
[327922919,1716640032122,-636.23739,7.194e-05,2]
[327922920,1716640184498,187.4587268,6.123e-05,2]
[327922960,1716640233372,-2468.55677296,7.101e-05,2]
[327922961,1716640233382,-1416.89662211,7.101e-05,2]
[327922962,1716640233405,-165.95185955,7.101e-05,2]
[327922963,1716640233415,-156.55408668,7.102e-05,2]
[327922964,1716640233425,-39.30905827,7.102e-05,2]
[327922965,1716640233437,-1463.45636231,7.102e-05,2]
[327922966,1716640233450,-606.52881462,7.102e-05,2]
[327922967,1716640233459,-1870.13098848,7.102e-05,2]
[327922968,1716640233469,-1899.42263675,7.102e-05,2]
[327922969,1716640233479,-488.24995546,7.103e-05,2]
[327922970,1716640233490,-4836.06760469,7.103e-05,2]
[327922971,1716640233502,-6231.26332614,7.103e-05,2]
[327922972,1716640233512,-1511.34126217,7.104e-05,2]
[327922973,1716640233522,-154.90705577,7.104e-05,2]
[327922974,1716640233532,-285.31097948,7.105e-05,2]
[327922975,1716640233541,-194.63259414,7.105e-05,2]
[327922976,1716640233551,-606.95373248,7.105e-05,2]
[327923040,1716640238026,-179.11240261,7.1e-05,2]
[327923042,1716640238035,-2105.75025243,7.105e-05,2]
[327923044,1716640238047,-10107.00823362,7.105e-05,2]
[327923046,1716640238058,-619.40230923,7.105e-05,2]
[327923049,1716640238070,-24035.74867995,7.105e-05,2]
[327923051,1716640238082,-2147.73455586,7.105e-05,2]
[327923053,1716640238093,-13701.59432712,7.105e-05,2]
[327923058,1716640238142,-565.90470413,7.105e-05,2]
[327923163,1716640242833,-410.85900029,7.099e-05,2]
[327923164,1716640242843,-154.90705577,7.104e-05,2]
[327923165,1716640242852,-685.23486931,7.104e-05,2]
[327923166,1716640242862,-1571.40888746,7.104e-05,2]
[327923171,1716640243511,-7996.58576928,7.104e-05,2]
[327923172,1716640243521,-14217.93318925,7.105e-05,2]
[327923173,1716640243531,-1895.27931477,7.106e-05,2]
[327923174,1716640243540,-24109.85602675,7.106e-05,2]
[327923175,1716640243552,-311.20545213,7.106e-05,2]
[327923176,1716640243564,-16656.84901377,7.106e-05,2]
[327923177,1716640243576,-926.23534421,7.106e-05,2]
[327923178,1716640243588,-2116.44274717,7.108e-05,2]
[327923179,1716640243600,-273.37336231,7.113e-05,2]
[327923180,1716640243622,-264.69439334,7.217e-05,2]
[327923181,1716640243636,-1953.39894523,7.397e-05,2]
[327923336,1716641364109,-10518.35727372,6.983e-05,2]
[327923337,1716641364132,-1870.13098848,6.984e-05,2]
[327923338,1716641364155,-11067.33093083,6.985e-05,2]
[327923339,1716641364176,-2468.55677296,6.985e-05,2]
[327923340,1716641364197,-285.31097948,6.986e-05,2]
[327923341,1716641364218,-2109.2942352,6.986e-05,2]
[327923342,1716641364240,-3065.00544058,6.987e-05,2]
[327923343,1716641364262,-154.90705577,6.987e-05,2]
[327923344,1716641364284,-685.23486931,6.987e-05,2]
[327923345,1716641364305,-2681.27163775,6.988e-05,2]
[327923346,1716641364326,-239.00629442,6.988e-05,2]
[327923347,1716641364348,-2116.44274717,6.988e-05,2]
[327923348,1716641364369,-22177.85372165,6.988e-05,2]
[327923365,1716641432263,-758.31809387,6.98e-05,2]
[327923366,1716641432273,-373.20250085,6.98e-05,2]
[327923367,1716641432285,-703.7636435,6.98e-05,2]
[327923368,1716641432296,-822.4564924,6.98e-05,2]
[327923369,1716641432306,-4456.23216996,6.981e-05,2]
[327923447,1716641438200,-2116.44274717,6.979e-05,2]
[327923449,1716641438209,-514.10105523,6.979e-05,2]
[327923451,1716641438219,-1310.7561976,6.981e-05,2]
[327923454,1716641438230,-2134.16234805,6.981e-05,2]
[327923455,1716641438239,-1428.42157704,6.985e-05,2]
[327923458,1716641438250,-12883.11919495,6.985e-05,2]
[327923460,1716641438262,-1790.00061627,6.985e-05,2]
[327923531,1716641441513,-2109.2942352,6.978e-05,2]
[327923532,1716641441523,-4108.07509781,6.985e-05,2]
[327923563,1716641443494,-39369.39108328,6.985e-05,2]
[327923599,1716641483594,2255.24562691,6.007e-05,2]
[327923600,1716641483628,4379.17924699,6.007e-05,2]
[327923601,1716641541709,430.23514922,0.000275,30]
[327923602,1716641571285,620.82075301,6.007e-05,2]
[327923603,1716641571324,18620.80868745,6.007e-05,2]
[327923604,1716641575151,5867.91841054,6.007e-05,2]
[327923605,1716641862515,8594.0497152,5.938e-05,2]
[327923606,1716641956776,300.0,0.000275,30]
[327923607,1716642019465,1900.645,0.000275,30]
[327923608,1716642060728,154.908,0.000275,30]
[327923610,1716642140463,270.62354186,6.904e-05,7]
[327923611,1716642317523,1003.0209438,5.878e-05,2]
[327923612,1716642387435,365.24444276,5.878e-05,2]
[327923613,1716642388233,3375.61311874,5.878e-05,2]
[327923614,1716642405427,256.1214947,5.878e-05,2]
[327923615,1716642405466,108.90573522,5.878e-05,2]
[327923616,1716642406260,332.29373991,5.878e-05,2]
[327923617,1716642430308,250.0,5.863e-05,2]
[327923618,1716642514186,3046.7707575,5.837e-05,2]
[327923619,1716642517876,11067.33093083,5.836e-05,2]
[327923620,1716642519636,758.31809387,5.836e-05,2]
[327923655,1716642632514,-281.80268381,6.76e-05,2]
[327923656,1716642632523,-1899.42263675,6.76e-05,2]
[327923657,1716642632533,-1979.22122047,6.76e-05,2]
[327923658,1716642632542,-231.02960299,6.761e-05,2]
[327923659,1716642632551,-194.63259414,6.761e-05,2]
[327923660,1716642632560,-1340.12846768,6.761e-05,2]
[327923661,1716642632569,-2681.27163775,6.761e-05,2]
[327923662,1716642632578,-410.85900029,6.761e-05,2]
[327923663,1716642632589,-1870.13098848,6.761e-05,2]
[327923664,1716642632598,-551.16749439,6.761e-05,2]
[327923665,1716642632607,-2109.2942352,6.761e-05,2]
[327923666,1716642632617,-1511.34126217,6.761e-05,2]
[327923667,1716642632626,-836.26318316,6.762e-05,2]
[327923668,1716642632635,-523.11398542,6.762e-05,2]
[327923669,1716642632644,-685.23486931,6.762e-05,2]
[327923671,1716642632654,-521.80087476,6.762e-05,2]
[327923673,1716642632663,-7901.15071561,6.763e-05,2]
[327923675,1716642632672,-154.90705577,6.763e-05,2]
[327923677,1716642632682,-455.85517438,6.763e-05,2]
[327923679,1716642632691,-154.90705577,6.763e-05,2]
[327923681,1716642632700,-181.5967108,6.763e-05,2]
[327923683,1716642632710,-9532.8943753,6.764e-05,2]
[327923751,1716642638977,-488.24995546,6.759e-05,2]
[327923753,1716642638986,-207.72365159,6.759e-05,2]
[327923755,1716642638997,-316.61744386,6.759e-05,2]
[327923757,1716642639006,-3065.00544058,6.76e-05,2]
[327923759,1716642639016,-985.46289842,6.764e-05,2]
[327923761,1716642639025,-164.28466186,6.764e-05,2]
[327923763,1716642639034,-703.25759255,6.765e-05,2]
[327923765,1716642639044,-239.00629442,6.765e-05,2]
[327923767,1716642639053,-2116.44274717,6.765e-05,2]
[327923769,1716642639063,-2636.83525359,6.765e-05,2]
[327923772,1716642639073,-285.31097948,6.765e-05,2]
[327923774,1716642639083,-371.5441297,6.765e-05,2]
[327923776,1716642639095,-215.87394328,6.765e-05,2]
[327923778,1716642639104,-758.31809387,6.765e-05,2]
[327923780,1716642639114,-1582.84848166,6.765e-05,2]
[327923782,1716642639124,-11067.33093083,6.765e-05,2]
[327923784,1716642639133,-720.62329532,6.766e-05,2]
[327923786,1716642639142,-1497.86344925,6.766e-05,2]
[327923788,1716642639151,-59448.58262667,6.766e-05,2]
[327923790,1716642639160,-68108.02998407,6.767e-05,2]
[327923792,1716642639169,-245.23226309,6.774e-05,2]
[327923794,1716642639178,-371.5441297,6.782e-05,2]
[327923812,1716642639342,-165.17031266,6.86e-05,2]
[327923814,1716642639356,-2759.93478101,6.887e-05,2]
[327923816,1716642639366,-3118.42395589,6.904e-05,2]
[327923818,1716642639375,-300.0,6.939e-05,2]
[327923820,1716642639384,-1057.51189123,6.967e-05,2]
[327923822,1716642639394,-516.69986204,7.069e-05,2]
[327923824,1716642639403,-1152.36513841,7.069e-05,2]
[327923826,1716642639413,-155.03814562,7.069e-05,2]
[327923828,1716642639425,-297.52885004,7.069e-05,2]
[327923830,1716642639435,-309.74719962,7.069e-05,2]
[327923832,1716642639445,-184.42856408,7.069e-05,2]
[327923834,1716642639454,-302.4700538,7.069e-05,2]
[327923836,1716642639464,-2508.76772644,7.07e-05,2]
[327923838,1716642639474,-200.0,7.076e-05,2]
[327923840,1716642639484,-155.00775523,7.394e-05,2]
[327923842,1716642639493,-155.38589597,7.394e-05,2]
[327923844,1716642639502,-246.06345069,7.395e-05,2]
[327923846,1716642639512,-285.539796,7.397e-05,2]
[327923848,1716642639522,-24900.0,7.397e-05,2]
[327923850,1716642639532,-300.0645842,7.784e-05,2]
[327923852,1716642639542,-2759.934781,8.415e-05,2]
[327923854,1716642639551,-2759.934781,9.943e-05,2]
[327923856,1716642639562,-9406.84773612,0.0001,2]
[327923858,1716642639572,-15000.0,0.0001,2]
[327923860,1716642639582,-4227.33365889,0.00010854,2]
[327923862,1716642639592,-366.990933,0.00010959,2]
[327923864,1716642639603,-366.990933,0.00010959,2]
[327923866,1716642639613,-366.990933,0.00010959,2]
[327923868,1716642639622,-366.990933,0.00010959,2]
[327923870,1716642639632,-280.92,0.00010959,2]
[327923872,1716642639641,-234.1,0.00010959,2]
[327923874,1716642639650,-195.08,0.00010959,2]
[327923876,1716642639660,-162.57,0.00010959,2]
[327923878,1716642639670,-2759.934781,0.00011371,2]
[327923880,1716642639680,-1492.69171574,0.0001277,2]
[327923882,1716642639691,-2759.934781,0.00012899,2]
[327923884,1716642639700,-223.91093132,0.00012997,2]
[327923887,1716642639713,-1807.98906868,0.00012997,2]
[327923889,1716642639723,-1566.14691382,0.00012999,2]
[327923891,1716642639735,-9322.300001,0.00012999,2]
[327923893,1716642639748,-843.70086696,0.00012999,2]
[327923916,1716642641802,-2805.11229578,6.759e-05,2]
[327923917,1716642641814,-6762.88236096,6.759e-05,2]